bitfinex-derivatives/quotes_ETHF0:USTF0_20250309
["timestamp","ask_amount","ask_price","bid_price","bid_amount"]
[1741561120848,9.3671204,2015.2,2015.1,4.99258]
[1741561121044,9.3671204,2015.2,2014.9,3.4458]
[1741561121252,9.3671204,2015.2,2015.1,0.99258]
[1741561122557,0.00743513,2015.4,2014.9,6.6536]
[1741561122760,0.00743513,2015.4,2015.3,0.99248]
[1741561123363,5.13e-06,2015.4,2015.3,0.99248]
[1741561123549,15.25222235,2016.3,2015.5,2.48091]
[1741561123860,8.27197294,2016.2,2016.1,0.99209]
[1741561124056,8.27197294,2016.2,2016.1,1.48809]
[1741561124658,0.00743513,2016.4,2016.1,0.496]
[1741561125460,0.00743513,2016.4,2016.3,0.99199]
[1741561127555,0.00743513,2016.4,2016.1,1.48806]
[1741561127857,0.00743513,2016.4,2016.3,0.99199]
[1741561129162,0.00743513,2016.4,2016.3,11.40885323]
[1741561130375,0.00743513,2016.4,2016.3,7.40885323]
[1741561131075,0.00743513,2016.4,2016.1,0.496]
[1741561131275,0.00743513,2016.4,2016.3,0.99199]
[1741561132371,0.00743513,2016.4,2016.1,0.496]
[1741561132372,3.21523513,2016.4,2016.1,0.496]
[1741561132573,3.21523513,2016.4,2016.1,1.48806]
[1741561133278,0.00743513,2016.4,2016.1,0.496]
[1741561133781,3.21523513,2016.4,2015.9,0.00743513]
[1741561133979,3.2078,2016.1,2015.9,0.99960513]
[1741561134474,4.08173513,2016.4,2015.9,0.00743513]
[1741561134871,0.87393513,2016.4,2015.9,2.95643513]
[1741561135175,0.87393513,2016.4,2016.1,0.99209]
[1741561135671,4.08173513,2016.4,2015.9,2.95643513]
[1741561135872,0.99206,2016.2,2015.9,2.95643513]
[1741561136182,4.08173513,2016.4,2015.9,3.94858513]
[1741561136376,4.08173513,2016.4,2016.2,0.99201]
[1741561136976,4.08173513,2016.4,2016.0,0.496]
[1741561137480,4.08173513,2016.4,2015.9,2.95643513]
[1741561137667,4.08173513,2016.4,2016.1,0.99208]
[1741561137871,4.08173513,2016.4,2015.9,2.95643513]
[1741561138068,4.08173513,2016.4,2016.0,0.99211]
[1741561138069,5.07369513,2016.4,2016.0,0.99211]
[1741561138275,4.08173513,2016.4,2016.1,0.99206]
[1741561138582,4.08173513,2016.4,2016.2,0.99204]
[1741561139676,4.08173513,2016.4,2016.3,0.99199]
[1741561139876,3.21523513,2016.4,2016.3,0.99199]
[1741561140677,3.21523513,2016.4,2016.2,0.99202]
[1741561140875,3.21523513,2016.4,2015.9,2.95643513]
[1741561141076,4.20719513,2016.4,2016.0,0.9921]
[1741561141277,4.20719513,2016.4,2015.9,2.95643513]
[1741561141278,3.21523513,2016.4,2015.9,2.95643513]
[1741561141585,0.9921,2016.1,2015.9,2.95643513]
[1741561141783,3.21523513,2016.4,2015.9,3.94859513]
[1741561141987,3.2078,2016.1,2015.9,2.95643513]
[1741561142182,1.623,2016.0,2015.9,0.00743513]
[1741561142380,2.61514,2016.0,2015.9,0.00743513]
[1741561142679,1.623,2016.0,2015.7,3.2078]
[1741561142879,3.2078,2015.8,2015.0,4.632]
[1741561143085,0.99246,2015.4,2015.1,1.48934]
[1741561143282,3.2078,2015.2,2015.0,0.4968]
[1741561143482,3.2078,2015.2,2014.9,0.4968]
[1741561143686,3.2078,2015.2,2015.1,0.99258]
[1741561143886,3.2078,2015.2,2015.0,0.99259]
[1741561144483,3.2078,2015.2,2015.0,0.99261]
[1741561145092,4.20035,2015.2,2014.9,1.48947]
[1741561145287,3.2078,2015.2,2014.9,0.4968]
[1741561145487,3.2078,2015.2,2014.8,0.00743513]
[1741561145787,3.2078,2014.9,2014.8,1.00016513]
[1741561145989,6.2878,2014.9,2014.8,0.00743513]
[1741561146182,7.28048,2014.9,2014.8,0.00743513]
[1741561146382,6.2878,2014.9,2014.8,0.00743513]
[1741561146990,7.28048,2014.9,2014.8,0.00743513]
[1741561148701,0.99281,2014.7,2014.3,0.4968]
[1741561148997,0.99281,2014.7,2014.3,0.99294]
[1741561149198,0.9929,2014.5,2014.1,1.48985]
[1741561149391,3.052,2014.4,2014.1,0.99305]
[1741561150695,3.052,2014.4,2014.0,0.00743513]
[1741561150696,0.993,2014.3,2014.0,0.00743513]
[1741561150996,3.2078,2014.3,2014.0,0.00743513]
[1741561151200,0.99307,2014.1,2014.0,0.00743513]
[1741561151396,0.99314,2014.0,2013.6,4.20111]
[1741561151698,3.036,2013.9,2013.6,3.2078]
[1741561151999,7.0651,2013.9,2013.2,1.49028]
[1741561152194,3.2078,2013.6,2013.2,0.4968]
[1741561152390,3.2078,2013.6,2013.3,0.99344]
[1741561152695,3.21523513,2013.6,2013.3,0.99344]
[1741561152892,3.21523513,2013.6,2013.2,0.4968]
[1741561153097,3.21523513,2013.6,2013.3,0.99347]
[1741561153296,3.21523513,2013.6,2013.2,1.49028]
[1741561153297,3.023,2013.5,2013.2,1.49028]
[1741561153492,3.023,2013.5,2013.1,0.4968]
[1741561153697,3.023,2013.5,2013.4,0.99342]
[1741561154097,3.023,2013.5,2013.3,0.99344]
[1741561154294,3.023,2013.5,2013.4,0.99342]
[1741561154503,0.00743513,2013.6,2013.5,0.99337]
[1741561154697,5.13e-06,2013.6,2013.5,4.99337]
[1741561154996,3.20780513,2013.6,2013.4,0.99341]
[1741561155299,3.20780513,2013.6,2013.0,0.4968]
[1741561155300,6.2338,2013.5,2013.0,0.4968]
[1741561155593,6.2338,2013.5,2012.5,2.949]
[1741561155594,3.2078,2013.1,2012.7,0.4968]
[1741561155898,3.2078,2012.8,2012.4,3.2078]
[1741561156094,3.035,2013.0,2012.7,0.00743001]
[1741561157295,3.2078,2012.8,2012.7,0.00743001]
[1741561157801,3.2078,2012.8,2012.0,1.8732]
[1741561157802,7.2078,2012.8,2012.0,3.2078]
[1741561157997,3.2078,2012.3,2011.9,0.4976]
[1741561158199,3.2078,2012.0,2011.6,0.4976]
[1741561158398,6.2288,2012.0,2011.3,0.4976]
[1741561158703,3.2078,2011.7,2011.3,0.4976]
[1741561159098,3.015,2011.6,2011.3,0.4976]
[1741561159801,3.01845379,2011.9,2011.4,6.36029408]
[1741561160703,3.2078,2011.5,2011.1,0.4976]
[1741561160904,6.2198,2011.5,2011.1,0.4976]
[1741561161199,6.2198,2011.5,2011.0,0.4976]
[1741561161395,6.2198,2011.5,2010.8,3.4466]
[1741561161396,3.2078,2011.2,2010.8,3.4466]
[1741561161605,3.007,2011.1,2010.7,19.05903488]
[1741561162201,3.2078,2010.8,2010.7,19.05903488]
[1741561162902,6.2148,2011.1,2010.7,19.05903488]
[1741561163798,3.007,2011.1,2010.8,6.59790153]
[1741561164199,3.007,2011.1,2010.7,19.05903488]
[1741561164605,3.2078,2011.0,2010.8,6.59585394]
[1741561164798,0.99465,2010.9,2010.8,6.59585394]
[1741561165103,3.2078,2011.0,2010.7,19.05903488]
[1741561165405,0.9947,2010.8,2010.7,19.05903488]
[1741561165701,0.9947,2010.8,2010.7,18.02236488]
[1741561165904,4.9947,2010.8,2010.7,6.6265749]
[1741561166103,0.9947,2010.8,2010.7,6.6265749]
[1741561166300,4.0,2010.8,2010.5,22.8563316]
[1741561166506,4.2026,2010.6,2010.5,22.8563316]
[1741561166700,3.2078,2010.6,2010.5,22.8563316]
[1741561167005,4.2026,2010.6,2010.5,22.8563316]
[1741561167208,3.2078,2010.6,2010.5,22.8563316]
[1741561167507,7.2066,2010.6,2010.5,22.8563316]
[1741561167711,11.2066,2010.6,2010.5,21.5731216]
[1741561168008,11.2066,2010.6,2010.5,19.5936416]
[1741561168400,7.2066,2010.6,2010.5,19.25665779]
[1741561168603,11.2066,2010.6,2010.5,19.25665779]
[1741561168801,11.2066,2010.6,2010.5,18.15711779]
[1741561169005,11.2066,2010.6,2010.5,14.00982779]
[1741561169205,14.1916,2010.6,2010.5,4.32578067]
[1741561169500,0.9949,2010.4,2010.3,17.02975293]
[1741561169702,4.20285,2010.1,2010.0,1.13275615]
[1741561169903,0.99535,2009.5,2009.4,41.19195708]
[1741561170107,7.23915,2009.5,2009.4,38.50622708]
[1741561170404,7.23915,2009.5,2009.4,37.08134708]
[1741561170606,7.23915,2009.5,2009.4,36.06240708]
[1741561170802,7.23915,2009.5,2009.4,33.78661708]
[1741561171008,0.99564,2008.9,2008.8,43.02733881]
[1741561171200,7.24844,2008.9,2008.8,27.90321634]
[1741561171400,7.24844,2008.9,2008.8,12.25280979]
[1741561171401,14.23344,2008.9,2008.8,12.25280979]
[1741561171701,14.23344,2008.9,2008.8,3.13190436]
[1741561171906,14.23344,2008.9,2008.8,4.36e-06]
[1741561172110,14.23344,2008.9,2007.3,0.4984]
[1741561172111,15.72694,2008.9,2007.3,0.4984]
[1741561172304,3.2078,2008.4,2007.5,3.2078]
[1741561172511,0.9961,2008.0,2007.5,3.2078]
[1741561172806,0.00745379,2008.2,2007.8,3.2078]
[1741561173008,0.00745379,2008.2,2008.1,3.2078]
[1741561173214,0.99569,2008.9,2008.1,3.2078]
[1741561173411,3.099,2009.0,2008.5,3.2078]
[1741561173905,3.2078,2009.1,2008.6,9.53367623]
[1741561174210,0.99574,2008.7,2008.6,9.53367623]
[1741561174411,0.99574,2008.7,2008.6,12.90845379]
[1741561174614,0.99574,2008.7,2008.6,8.65623002]
[1741561174817,0.99574,2008.7,2008.6,8.64878002]
[1741561175202,0.99574,2008.7,2008.6,3.79e-06]
[1741561175619,7.98074,2008.7,2008.6,3.79e-06]
[1741561176112,2.48984,2008.4,2007.4,0.4984]
[1741561176309,3.116,2008.3,2007.5,9.14717623]
[1741561176514,3.116,2008.3,2007.6,4.0411]
[1741561176704,0.99624,2007.7,2007.6,12.68987623]
[1741561176909,3.116,2008.3,2007.7,8.64877623]
[1741561176910,0.99609,2008.0,2007.7,8.64877623]
[1741561177112,3.2078,2008.1,2007.7,8.64877623]
[1741561177304,3.21525379,2008.1,2007.7,8.64877623]
[1741561177616,0.99614,2007.9,2007.8,8.64877623]
[1741561177812,0.99619,2007.8,2007.7,7.58925623]
[1741561178009,6.3328,2007.8,2007.3,16.6072]
[1741561178209,0.99634,2007.5,2007.4,7.58925623]
[1741561178609,0.99631,2007.6,2007.4,20.49025623]
[1741561178810,6.35325379,2008.1,2007.5,7.58925623]
[1741561179015,6.35325379,2008.1,2007.4,10.79705623]
[1741561179311,6.35325379,2008.1,2007.4,16.1088]
[1741561179713,0.99619,2007.8,2007.4,12.901]
[1741561179920,0.99632,2007.6,2007.4,12.901]
[1741561180216,3.2078,2007.9,2007.4,12.901]
[1741561180217,0.99634,2007.5,2007.4,12.901]
[1741561180412,6.3478,2007.6,2006.8,4.5785]
[1741561180613,0.99664,2006.9,2006.8,4.0801]
[1741561180814,0.99664,2006.9,2006.8,13.7733]
[1741561181022,0.99664,2006.9,2006.8,12.901]
[1741561181309,0.99679,2006.6,2006.5,4.0515]
[1741561181513,3.154,2007.0,2006.5,4.0515]
[1741561181816,3.154,2007.0,2006.9,0.99664]
[1741561182011,3.16,2007.9,2006.9,0.04778621]
[1741561182212,3.16,2007.9,2007.2,4.20424]
[1741561182213,0.99622,2007.8,2007.2,4.20424]
[1741561182407,3.2078,2007.7,2007.2,3.2078]
[1741561182710,2.48987,2008.3,2007.2,3.2078]
[1741561182711,3.2078,2008.3,2007.5,3.2078]
[1741561183022,3.161,2008.2,2007.9,0.04778621]
[1741561183223,0.00747254,2008.1,2007.9,0.04778621]
[1741561183514,0.00747254,2008.1,2008.0,0.99609]
[1741561183815,3.159,2008.5,2008.0,4.15108323]
[1741561184020,0.94825379,2008.1,2008.0,4.15108323]
[1741561184220,0.94825379,2008.1,2008.0,0.8385]
[1741561184409,3.2078,2008.3,2008.0,0.8385]
[1741561184616,3.2078,2008.3,2007.8,3.2078]
[1741561184918,0.00747254,2008.3,2008.0,0.99606]
[1741561185117,0.00747254,2008.3,2007.8,3.2078]
[1741561185118,3.21527254,2008.3,2007.8,3.2078]
[1741561185317,3.21527254,2008.3,2007.8,5.63938323]
[1741561185514,0.00747254,2008.3,2008.2,0.99599]
[1741561185922,0.00747254,2008.3,2008.1,4.20381]
[1741561186121,0.00747254,2008.3,2008.2,0.99599]
[1741561186323,3.21527254,2008.3,2008.1,2.43158323]
[1741561186529,3.21527254,2008.3,2007.8,0.99619]
[1741561186928,0.00747254,2008.3,2007.8,3.2078]
[1741561187231,3.21527254,2008.3,2007.5,3.2078]
[1741561187426,3.2078,2008.2,2008.1,0.99604]
[1741561187830,3.2078,2008.2,2008.1,3.42762323]
[1741561188029,3.2078,2008.2,2008.1,2.43158323]
[1741561188230,3.2078,2008.2,2008.1,3.42762323]
[1741561188431,0.00747254,2008.3,2008.2,0.99599]
[1741561188628,3.2078,2008.9,2008.7,0.99574]
[1741561188828,3.2078,2008.9,2008.4,0.8277]
[1741561189031,3.155,2009.0,2008.4,0.8277]
[1741561189032,3.2078,2008.5,2008.4,0.8277]
[1741561189237,6.3648,2008.5,2008.4,0.8277]
[1741561189835,6.3648,2008.5,2008.4,0.99589]
[1741561190134,0.00747254,2008.7,2008.6,0.99579]
[1741561190339,3.2078,2008.9,2008.2,3.2078]
[1741561190630,3.159,2009.1,2009.0,0.99559]
[1741561190832,0.99563,2009.0,2008.3,11.77328388]
[1741561191039,3.2078,2008.9,2008.8,0.99568]
[1741561191230,3.2078,2008.9,2008.3,2.48986]
[1741561191231,3.2078,2008.9,2008.7,0.99571]
[1741561191425,3.2078,2008.9,2008.3,2.48986]
[1741561191426,3.2078,2008.9,2008.8,0.99569]
[1741561191740,3.2078,2008.9,2008.6,0.00747254]
[1741561191938,0.99572,2008.8,2008.6,0.00747254]
[1741561192234,0.99574,2008.7,2008.6,0.00747254]
[1741561192441,6.948,2008.8,2007.9,0.460841]
[1741561192634,3.2078,2008.2,2008.1,0.99604]
[1741561192935,6.3638,2008.2,2008.1,0.99604]
[1741561193139,6.3638,2008.2,2007.8,0.4984]
[1741561193333,6.3638,2008.2,2007.6,3.2078]
[1741561193539,7.3598,2008.2,2007.8,0.99617]
[1741561193840,7.3598,2008.2,2007.6,3.2078]
[1741561193841,6.3638,2008.2,2007.6,3.2078]
[1741561194033,6.3638,2008.2,2008.1,0.99604]
[1741561194337,3.161,2008.2,2008.1,0.99604]
[1741561196140,0.00747254,2009.0,2008.1,6.47807997]
[1741561196333,6.3838,2009.5,2008.4,3.2078]
[1741561196527,6.3838,2009.5,2008.5,0.896]
[1741561196726,5.27973,2009.5,2009.4,0.9954]
[1741561196930,5.27973,2009.5,2009.1,2.48882]
[1741561196931,3.73337174,2009.6,2009.1,2.48882]
[1741561197137,2.49100174,2009.6,2009.5,0.99535]
[1741561197531,5.60753016,2009.8,2009.5,0.4984]
[1741561197730,0.00747254,2009.8,2009.7,0.99525]
[1741561198132,0.00747254,2009.8,2009.6,2.54504353]
[1741561198335,0.00747254,2009.8,2009.5,0.4984]
[1741561198538,0.00747254,2009.8,2009.7,0.99525]
[1741561198941,0.00747254,2009.8,2009.3,0.00747254]
[1741561198942,3.21527254,2009.8,2009.3,0.00747254]
[1741561199436,0.00747254,2009.8,2009.7,0.99525]
[1741561200837,0.00747254,2009.8,2009.5,0.99535]
[1741561201135,3.21527254,2009.8,2009.3,0.00747254]
[1741561201333,3.21527254,2009.8,2009.5,0.99532]
[1741561201542,2.54e-06,2009.8,2009.7,4.20305]
[1741561202046,2.54e-06,2009.8,2009.7,0.99525]
[1741561202738,2.54e-06,2009.8,2009.7,4.99525]
[1741561202936,2.54e-06,2009.8,2009.7,0.99525]
[1741561203633,2.54e-06,2009.8,2009.7,4.99525]
[1741561203830,4.34055425,2010.4,2009.7,18.9795338]
[1741561204032,12.58824043,2010.9,2010.5,0.99485]
[1741561204033,9.39924043,2010.9,2010.5,0.99485]
[1741561204238,6.3978,2011.0,2010.9,0.99465]
[1741561204547,6.3978,2011.0,2010.3,3.2078]
[1741561204742,6.3978,2011.0,2010.5,0.99482]
[1741561205241,6.3978,2011.0,2010.5,0.00747254]
[1741561205242,6.40527254,2011.0,2010.5,0.00747254]
[1741561205546,3.2078,2010.7,2010.5,0.00747254]
[1741561205744,5.933,2010.9,2010.5,0.00747254]
[1741561206048,3.2078,2010.7,2010.5,0.00747254]
[1741561206940,5.933,2010.9,2010.8,0.9947]
[1741561207146,3.19847254,2011.0,2010.9,0.99465]
[1741561207539,0.00747254,2011.0,2010.9,0.99465]
[1741561207738,11.50398328,2011.1,2011.0,0.9946]
[1741561208047,11.50398328,2011.1,2010.9,0.99465]
[1741561208243,11.50398328,2011.1,2010.6,0.8631]
[1741561208543,11.50398328,2011.1,2011.0,0.9946]
[1741561208740,11.50398328,2011.1,2010.6,0.8631]
[1741561209042,11.50398328,2011.1,2010.7,3.2078]
[1741561209241,11.50398328,2011.1,2010.6,0.8631]
[1741561209242,3.2078,2010.8,2010.5,0.00747254]
[1741561209543,21.72525306,2011.0,2010.7,3.2078]
[1741561209749,21.72525306,2011.0,2010.9,0.99465]
[1741561210250,28.93305306,2011.0,2010.5,0.00747254]
[1741561210446,24.93305306,2011.0,2010.7,0.99475]
[1741561210643,0.9096,2010.9,2010.8,0.9947]
[1741561210843,24.93305306,2011.0,2010.5,3.21527254]
[1741561211145,24.93305306,2011.0,2010.9,4.20245]
[1741561211146,19.15226306,2011.0,2010.9,4.20245]
[1741561211444,3.21347254,2011.3,2010.8,0.99468]
[1741561211642,3.21347254,2011.3,2010.9,0.99464]
[1741561211950,3.2078,2011.1,2010.8,0.99467]
[1741561212147,3.2078,2011.1,2010.5,0.00747254]
[1741561212642,3.2078,2011.1,2011.0,0.9946]
[1741561213150,3.2078,2011.1,2010.6,0.99478]
[1741561213450,3.2078,2010.7,2010.6,0.9948]
[1741561213955,3.193,2010.8,2010.7,0.99475]
[1741561214153,3.193,2010.8,2010.5,0.00747254]
[1741561214444,3.193,2010.8,2010.7,0.99475]
[1741561216249,7.59555743,2011.2,2011.1,0.99456]
[1741561216648,0.84714343,2011.2,2011.1,0.99456]
[1741561216853,5.97e-06,2011.3,2011.2,0.99451]
[1741561217051,5.97e-06,2011.3,2011.2,1.87131]
[1741561217348,9.96395455,2011.9,2011.8,0.99421]
[1741561217555,3.194,2012.7,2012.0,0.99411]
[1741561217756,14.07874384,2012.1,2012.0,4.99411]
[1741561218150,14.07874384,2012.1,2012.0,0.99411]
[1741561218956,12.76054384,2012.1,2012.0,0.99411]
[1741561219157,12.76054384,2012.1,2012.0,4.99411]
[1741561219357,12.76054384,2012.1,2012.0,0.99411]
[1741561219860,0.00747254,2012.3,2012.2,0.99401]
[1741561224762,2.54e-06,2012.3,2012.2,1.49161]
[1741561225059,2.54e-06,2012.3,2012.2,14.84474333]
[1741561225362,2.54e-06,2012.3,2012.2,7.89574333]
[1741561225548,3.20780254,2012.3,2012.2,1.49161]
[1741561225754,3.20780254,2012.3,2010.6,3.2078]
[1741561225755,10.41880254,2012.3,2010.6,3.2078]
[1741561225961,3.2078,2011.5,2010.4,0.08647864]
[1741561226256,3.2078,2010.5,2009.8,0.4976]
[1741561226459,3.2078,2009.9,2009.3,3.2078]
[1741561226662,3.2078,2009.6,2009.3,6.46611732]
[1741561226853,9.5276,2010.4,2009.4,5.95736324]
[1741561227050,4.89,2010.3,2009.9,3.2078]
[1741561227450,4.89,2010.3,2010.2,3.2078]
[1741561227650,3.2078,2010.7,2010.0,5.32086087]
[1741561227857,0.00747254,2010.3,2010.2,0.995]
[1741561228152,5.6704,2011.0,2010.2,3.2078]
[1741561228353,5.6704,2011.0,2010.4,0.99489]
[1741561228659,4.89,2011.1,2010.8,3.2078]
[1741561228859,3.2078,2011.7,2011.0,0.99459]
[1741561229067,4.89,2012.2,2011.5,3.2078]
[1741561229265,3.2078,2012.3,2011.2,3.2078]
[1741561229462,0.00747254,2012.1,2011.6,0.00747254]
[1741561229851,0.00747254,2012.1,2011.8,3.2078]
[1741561230259,0.00747254,2012.1,2011.9,12.08879812]
[1741561230565,0.7926,2013.2,2011.9,12.08879812]
[1741561230759,3.2078,2013.7,2012.9,3.2078]
[1741561230956,0.7926,2013.8,2013.0,3.2078]
[1741561231154,3.2078,2013.5,2012.5,3.2078]
[1741561231354,3.2078,2013.5,2012.8,3.2078]
[1741561231763,0.00745379,2013.4,2012.9,0.00745379]
[1741561232058,0.00745379,2013.4,2013.1,3.2078]
[1741561232460,3.2078,2014.1,2013.3,0.99347]
[1741561232657,3.2078,2014.1,2013.7,3.2078]
[1741561233062,3.2078,2014.1,2013.4,12.15378903]
[1741561233268,3.2078,2014.1,2013.3,3.2078]
[1741561233460,3.2078,2013.8,2013.0,8.3511]
[1741561233658,0.8295,2013.7,2013.0,8.3511]
[1741561233861,0.8295,2013.7,2013.1,6.57624114]
[1741561234062,3.2078,2013.4,2012.9,0.00745379]
[1741561234260,3.2078,2013.0,2012.3,0.4968]
[1741561234466,4.8504,2012.9,2012.3,3.7046]
[1741561234767,0.7694,2013.3,2012.6,3.2078]
[1741561235063,3.2078,2013.4,2012.6,3.2078]
[1741561235263,3.2078,2013.3,2012.7,11.79417592]
[1741561235458,0.99342,2013.4,2012.7,5.22115279]
[1741561235660,3.21525379,2013.2,2012.8,0.00745379]
[1741561235855,3.2078,2012.8,2011.9,0.4968]
[1741561236063,3.2078,2012.5,2011.8,3.2078]
[1741561236355,3.2078,2012.5,2011.7,0.4976]
[1741561236555,3.2078,2012.0,2011.8,0.4976]
[1741561237362,0.00745379,2012.1,2011.8,0.4976]
[1741561237762,0.00745379,2012.1,2012.0,0.99411]
[1741561237962,3.2078,2013.1,2012.3,0.99392]
[1741561238161,1.6203,2013.6,2013.0,3.2078]
[1741561238466,7.875,2014.7,2011.8,25.28604]
[1741561238467,9.45499321,2013.5,2013.4,3.2078]
[1741561238863,3.2078,2014.0,2013.4,7.7046]
[1741561239061,1.5276,2015.0,2014.4,0.99288]
[1741561239267,2.3515,2015.0,2014.8,3.2078]
[1741561239565,2.3515,2015.0,2014.3,3.2078]
[1741561240160,3.2078,2014.9,2014.7,0.00745379]
[1741561240563,7.2078,2014.9,2013.9,3.2078]
[1741561240760,3.2078,2014.0,2013.6,3.2078]
[1741561240965,3.2078,2013.7,2013.1,0.4968]
[1741561241559,3.2078,2013.7,2013.2,3.2078]
[1741561241760,0.00745379,2013.6,2013.2,0.00745379]
[1741561241972,3.2078,2013.4,2013.2,0.00745379]
[1741561242177,3.21525379,2013.6,2013.2,0.00745379]
[1741561242372,0.00745379,2013.6,2013.2,0.00745379]
[1741561242688,3.21525379,2013.6,2013.2,0.00745379]
[1741561242969,0.00745379,2013.6,2013.2,0.00745379]
[1741561243363,0.00745379,2013.6,2013.5,0.99337]
[1741561244066,3.79e-06,2013.6,2013.5,11.4401427]
[1741561244273,0.8004,2014.6,2013.5,11.4401427]
[1741561244274,4.8393,2014.6,2013.5,15.76271952]
[1741561244568,4.8393,2014.6,2013.7,3.2078]
[1741561244870,3.2078,2014.3,2013.5,0.4968]
[1741561245065,4.8393,2014.6,2014.1,0.99304]
[1741561245265,4.8393,2014.6,2014.1,0.99305]
[1741561245464,1.6315,2014.6,2014.0,3.2078]
[1741561245670,1.63895379,2014.6,2014.1,0.4968]
[1741561245976,1.63895379,2014.6,2014.4,0.9929]
[1741561246271,1.63895379,2014.6,2014.5,0.99288]
[1741561246467,3.79e-06,2014.6,2014.5,7.52838008]
[1741561246669,3.79e-06,2014.6,2014.5,17.51071615]
[1741561246872,0.7911,2015.5,2015.3,0.99245]
[1741561247068,0.7911,2015.5,2015.0,3.2078]
[1741561247378,0.7911,2015.5,2015.2,0.99251]
[1741561247574,1.78351,2015.5,2015.0,3.2078]
[1741561247769,0.7821,2015.4,2015.0,3.2078]
[1741561247978,0.99265,2015.0,2014.4,3.2078]
[1741561248168,3.2078,2014.8,2014.3,0.50425379]
[1741561248677,3.2078,2014.8,2014.3,1.49720379]
[1741561248873,3.2078,2014.5,2014.3,0.50425379]
[1741561249079,4.20071,2014.5,2013.8,4.20099]
[1741561249268,3.2078,2014.5,2014.0,0.9931]
[1741561249470,3.2078,2014.5,2013.8,3.2078]
[1741561249670,3.2078,2014.3,2013.8,3.2078]
[1741561250070,3.2078,2014.3,2013.8,3.7046]
[1741561250266,3.21525379,2014.3,2013.8,3.71205379]
[1741561250472,3.21525379,2014.3,2013.8,3.21525379]
[1741561251277,3.2078,2013.9,2013.8,0.00745379]
[1741561251474,3.2078,2013.9,2013.3,0.4968]
[1741561251677,4.89,2014.1,2013.3,0.4968]
[1741561251974,3.2078,2013.5,2013.4,0.99342]
[1741561252174,4.20103,2013.8,2013.3,0.4968]
[1741561252375,3.2078,2013.5,2013.3,1.49025]
[1741561252578,3.2078,2013.8,2013.3,0.4968]
[1741561252768,3.2078,2013.8,2013.4,5.5226735]
[1741561252973,3.2078,2013.8,2013.5,0.99334]
[1741561253173,4.89,2013.7,2013.3,0.00745379]
[1741561253377,3.2078,2013.4,2013.3,1.00092379]
[1741561253585,4.89,2013.7,2013.3,0.00745379]
[1741561253772,4.89,2013.7,2013.4,0.9934]
[1741561253973,3.2078,2013.5,2013.3,0.00745379]
[1741561254183,4.20119,2013.5,2013.3,0.00745379]
[1741561254380,0.99342,2013.4,2013.3,0.00745379]
[1741561254582,0.7643,2013.4,2013.3,0.00745379]
[1741561255073,4.7643,2013.4,2012.6,0.7677]
[1741561255274,3.2078,2013.2,2012.6,0.7677]
[1741561255470,3.2078,2013.2,2012.8,0.99369]
[1741561255680,0.8604,2013.3,2012.6,0.7677]
[1741561255876,4.89,2013.5,2013.4,0.99342]
[1741561256077,3.9959,2013.9,2013.5,0.99337]
[1741561256278,3.2078,2013.6,2013.5,0.99337]
[1741561256479,0.00745379,2013.7,2013.6,0.99332]
[1741561256879,0.00745379,2013.7,2013.6,0.98390221]
[1741561257885,0.00745379,2013.7,2013.4,0.8621]
[1741561258184,3.2078,2013.6,2013.3,0.4968]
[1741561258375,3.2078,2013.6,2013.3,1.49024]
[1741561258576,3.2078,2013.6,2013.3,0.4968]
[1741561258779,3.2078,2013.6,2013.5,0.99337]
[1741561259179,0.00745379,2013.7,2013.6,0.99332]
[1741561259390,0.00745379,2013.7,2013.6,4.20112]
[1741561259582,3.79e-06,2013.7,2013.6,4.20112]
[1741561259790,4.0918,2014.5,2013.6,3.2078]
[1741561259984,3.2078,2014.5,2014.4,0.99293]
[1741561260283,6.56971242,2014.7,2014.6,0.99283]
[1741561260478,6.56971242,2014.7,2014.6,4.69743]
[1741561260679,9.5408,2015.7,2014.7,0.99277]
[1741561260680,6.56971242,2015.0,2014.7,0.99277]
[1741561260878,0.00745379,2014.9,2014.8,0.99273]
[1741561261183,0.00745379,2014.9,2014.8,7.38304768]
[1741561261383,0.00745379,2014.9,2014.8,0.99273]
[1741561261579,0.00745379,2014.9,2014.8,1.48953]
[1741561262481,7.26279753,2015.2,2014.8,41.47166121]
[1741561262687,5.02087,2016.2,2015.1,5.68916]
[1741561262990,3.2078,2015.6,2015.2,3.804]
[1741561263286,4.0288,2016.2,2015.5,5.68866]
[1741561263481,4.0288,2016.2,2015.2,18.85660238]
[1741561263680,3.2078,2015.9,2015.6,0.00745379]
[1741561264785,0.99229,2015.7,2015.6,0.00745379]
[1741561265488,4.0,2015.7,2014.8,22.7798]
[1741561265687,3.2078,2015.1,2014.8,1.48952]
[1741561265880,8.9148,2015.6,2014.8,0.4968]
[1741561266081,3.2078,2015.3,2015.2,0.99253]
[1741561266280,5.02086,2016.2,2015.2,7.2078]
[1741561266483,0.99958379,2016.1,2015.3,11.57235724]
[1741561266685,3.2078,2015.9,2015.5,0.99236]
[1741561266882,0.00745379,2016.1,2016.0,0.99214]
[1741561267082,3.2078,2017.0,2016.0,7.2078]
[1741561267284,3.2078,2017.0,2016.9,0.9917]
[1741561267484,18.12478642,2017.3,2016.6,3.2078]
[1741561267485,13.23478642,2017.3,2016.6,3.2078]
[1741561267688,13.23478642,2017.3,2017.1,0.9916]
[1741561267985,13.23478642,2017.3,2016.9,0.99166]
[1741561268186,13.23478642,2017.3,2016.8,3.2078]
[1741561268483,13.23478642,2017.3,2016.5,0.496]
[1741561268484,3.2078,2016.9,2016.5,0.496]
[1741561268788,13.23478642,2017.3,2016.2,26.97282]
[1741561268789,3.2078,2016.7,2016.2,26.97282]
[1741561269089,3.2078,2016.4,2015.7,3.2078]
[1741561269286,0.99201,2016.3,2015.8,0.496]
[1741561269490,3.2078,2016.1,2015.8,0.496]
[1741561269688,3.2078,2016.1,2015.7,1.48827]
[1741561269992,3.2078,2016.1,2015.8,0.99967379]